[Event "GER-ch Youth-U10 2022"]
[Site "Willingen"]
[Date "2022.06.09"]
[Round "8.4"]
[White "Rau, Eduard"]
[Black "Shen, Tingrui"]
[Result "0-1"]
[ECO "B28"]
[WhiteElo "1406"]
[BlackElo "1621"]
[Annotator "NA RC COMBH"]
[PlyCount "72"]
[EventDate "2022.06.05"]
[EventType "swiss"]
[EventRounds "11"]
[EventCountry "GER"]
[SourceTitle "playchess.com"]
[Source "ChessBase"]
[SourceQuality "1"]
[TimeControl "40/4500+30:900+30"]

1. e4 {[%emt 0:00:06]} c5 {[%emt 0:00:52]} 2. Nf3 {[%emt 0:00:04]} a6 {[%emt 0:00:32]} 3. d4 {[%emt 0:00:34]} cxd4 {[%emt 0:00:47]} 4. Qxd4 {[%emt 0:00:22]} Nc6 {[%emt 0:02:16]} 5. Qe3 {[%emt 0:00:04]} g6 {[%emt 0:05:41]} 6. Nc3 {[%emt 0:01:04]} Bg7 {[%emt 0:02:41]} 7. Nd5 {[%emt 0:01:48]} Nf6 {[%emt 0:03:30]} 8. c3 {[%emt 0:02:18]} O-O {[%emt 0:10:38]} 9. Bd3 {[%emt 0:03:29]} d6 {[%emt 0:04:18]} 10. O-O {[%emt 0:10:45]} b5 {[%emt 0:11:22]} 11. Qe2 {[%emt 0:01:46]} Bg4 {[%emt 0:07:16]} 12. Bf4 {[%emt 0:01:16]} Nxd5 {[%emt 0:10:43]} 13. exd5 {[%emt 0:00:20]} Ne5 {[%emt 0:00:49]} 14. Bxe5 {[%emt 0:00:26]} Bxf3 {[%emt 0:02:37]} 15. Qxf3 {[%emt 0:00:27]} Bxe5 {[%emt 0:01:02]} 16. Qe3 {[%emt 0:00:24]} Qc7 {[%emt 0:04:19]} 17. f4 {[%emt 0:01:51]} Bf6 {[%emt 0:03:09]} 18. Kh1 {[%emt 0:01:26]} Qc5 {[%emt 0:04:10]} 19. Qf3 {[%emt 0:01:32]} a5 {[%emt 0:03:41]} 20. a3 {[%emt 0:02:54]} b4 {[%emt 0:02:01]} 21. cxb4 {[%emt 0:00:23]} axb4 {[%emt 0:00:22]} 22. Rfc1 {[%emt 0:01:13]} Qa5 {[%emt 0:01:41]} 23. Qe2 {[%emt 0:01:03]} bxa3 {[%emt 0:00:55]} 24. Rxa3 {[%emt 0:00:28]} Qb4 {[%emt 0:00:22]} 25. Rca1 {[%emt 0:07:00]} Rxa3 {[%emt 0:00:36]} 26. bxa3 {[%emt 0:00:10]} Qxf4 {[%emt 0:00:20]} 27. Rb1 {[%emt 0:02:08]} Qa4 {[%emt 0:00:40]} 28. Qa2 {[%emt 0:00:59]} Rc8 {[%emt 0:00:17]} 29. g3 {[%emt 0:03:02]} Rc3 {[%emt 0:00:31]} 30. Qd2 {[%emt 0:02:25]} Qd4 {[%emt 0:01:04]} 31. Qh6 {[%emt 0:02:58]} Qxd5+ {[%emt 0:00:11]} 32. Kg1 {[%emt 0:00:05]} Bd4+ {[%emt 0:00:12]} 33. Kf1 {[%emt 0:00:05]} Qf3+ {[%emt 0:00:19]} 34. Ke1 {[%emt 0:00:19]} Bf2+ {[%emt 0:00:10]} 35. Kf1 {[%emt 0:01:17]} Be3+ {[%emt 0:00:09]} 36. Ke1 {[%emt 0:00:03]} Qf2+ {[%emt 0:00:09]} 0-1

[Event "GER-ch Youth-U10 2022"]
[Site "Willingen"]
[Date "2022.06.09"]
[Round "8.5"]
[White "Fischermann, Simon"]
[Black "Li, Yunqi"]
[Result "0-1"]
[ECO "E21"]
[WhiteElo "1344"]
[BlackElo "1312"]
[Annotator "NA RC COMBH"]
[PlyCount "100"]
[EventDate "2022.06.05"]
[EventType "swiss"]
[EventRounds "11"]
[EventCountry "GER"]
[SourceTitle "playchess.com"]
[Source "ChessBase"]
[SourceQuality "1"]
[TimeControl "40/4500+30:900+30"]

1. d4 {[%emt 0:00:01]} Nf6 {[%emt 0:00:05]} 2. c4 {[%emt 0:00:44]} e6 {[%emt 0:00:28]} 3. Nc3 {[%emt 0:00:06]} Bb4 {[%emt 0:00:02]} 4. Bd2 {[%emt 0:00:13]} b6 {[%emt 0:00:10]} 5. Nf3 {[%emt 0:00:20]} Bb7 {[%emt 0:00:09]} 6. e3 {[%emt 0:00:16]} O-O {[%emt 0:00:17]} 7. Bd3 {[%emt 0:00:10]} d6 {[%emt 0:00:42]} 8. a3 {[%emt 0:00:43]} Bxc3 {[%emt 0:00:06]} 9. Bxc3 {[%emt 0:00:05]} Ne4 {[%emt 0:00:05]} 10. Qc2 {[%emt 0:00:42]} f5 {[%emt 0:01:46]} 11. Bxe4 {[%emt 0:13:06]} Bxe4 {[%emt 0:01:31]} 12. Qe2 {[%emt 0:00:19]} Nd7 {[%emt 0:00:10]} 13. O-O {[%emt 0:00:21]} Nf6 {[%emt 0:00:05]} 14. Nd2 {[%emt 0:00:24]} Bb7 {[%emt 0:00:23]} 15. f3 {[%emt 0:02:39]} c5 {[%emt 0:03:47]} 16. b3 {[%emt 0:01:51]} Re8 {[%emt 0:02:26]} 17. h3 {[%emt 0:10:25]} Qc7 {[%emt 0:04:26]} 18. dxc5 {[%emt 0:01:52]} dxc5 {[%emt 0:02:16]} 19. Bxf6 {[%emt 0:00:13]} gxf6 {[%emt 0:00:22]} 20. e4 {[%emt 0:00:10]} f4 {[%emt 0:00:43]} 21. Rfd1 {[%emt 0:05:31]} Kh8 {[%emt 0:08:44]} 22. Nf1 {[%emt 0:00:35]} Re7 {[%emt 0:01:20]} 23. Rd2 {[%emt 0:00:37]} Rg8 {[%emt 0:00:46]} 24. Rad1 {[%emt 0:00:56]} Bc8 {[%emt 0:00:25]} 25. Rd6 {[%emt 0:02:35]} Reg7 {[%emt 0:01:04]} 26. Nh2 {[%emt 0:01:19]} h5 {[%emt 0:01:21]} 27. Qf2 {[%emt 0:00:30]} Qf7 {[%emt 0:00:52]} 28. R1d2 {[%emt 0:01:14]} Rg3 {[%emt 0:03:37]} 29. Kh1 {[%emt 0:01:52]} e5 {[%emt 0:12:30]} 30. Rd8 {[%emt 0:03:14]} R3g5 {[%emt 0:05:37]} 31. Qf1 {[%emt 0:11:34]} Kh7 {[%emt 0:03:42]} 32. Qd1 {[%emt 0:01:59]} Kh6 {[%emt 0:04:59]} 33. Rxg8 {[%emt 0:01:18]} Rxg8 {[%emt 0:00:05]} 34. Rd8 {[%emt 0:00:16]} Be6 {[%emt 0:01:02]} 35. Rxg8 {[%emt 0:01:16]} Qxg8 {[%emt 0:00:29]} 36. Qd6 {[%emt 0:00:53]} Qf7 {[%emt 0:00:46]} 37. Nf1 {[%emt 0:00:19]} Kg6 {[%emt 0:00:59]} 38. Nd2 {[%emt 0:00:31]} Qd7 {[%emt 0:00:10]} 39. Qxd7 {[%emt 0:00:31]} Bxd7 {[%emt 0:00:08]} 40. b4 {[%emt 0:00:19]} Ba4 {[%emt 0:00:50]} 41. Kg1 {[%emt 0:15:36]} Kf7 {[%emt 0:15:19]} 42. Kf2 {[%emt 0:00:10]} Ke6 {[%emt 0:00:12]} 43. Ke2 {[%emt 0:00:22]} Bc2 {[%emt 0:00:48]} 44. Nf1 {[%emt 0:00:37]} f5 {[%emt 0:06:57]} 45. exf5+ {[%emt 0:04:44]} Bxf5 {[%emt 0:01:57]} 46. Nd2 {[%emt 0:02:42]} Kd6 {[%emt 0:01:09]} 47. Ne4+ {[%emt 0:00:40]} Bxe4 {[%emt 0:00:35]} 48. fxe4 {[%emt 0:00:10]} cxb4 {[%emt 0:00:01]} 49. axb4 {[%emt 0:00:18]} a5 {[%emt 0:01:28]} 50. g4 {[%emt 0:01:30]} fxg3 {[%emt 0:01:37]} 0-1

[Event "GER-ch Youth-U10 2022"]
[Site "Willingen"]
[Date "2022.06.09"]
[Round "8.6"]
[White "Rodriguez Klasen, Ennio"]
[Black "Zimmer, Tim"]
[Result "1-0"]
[ECO "C22"]
[WhiteElo "1315"]
[BlackElo "1164"]
[Annotator "NA RC COMBH"]
[PlyCount "71"]
[EventDate "2022.06.05"]
[EventType "swiss"]
[EventRounds "11"]
[EventCountry "GER"]
[SourceTitle "playchess.com"]
[Source "ChessBase"]
[SourceQuality "1"]
[TimeControl "40/4500+30:900+30"]

1. e4 {[%emt 0:00:10]} e5 {[%emt 0:00:14]} 2. d4 {[%emt 0:00:05]} exd4 {[%emt 0:01:29]} 3. Qxd4 {[%emt 0:00:10]} Nc6 {[%emt 0:01:00]} 4. Qe3 {[%emt 0:00:05]} b6 {[%emt 0:01:46]} 5. Nc3 {[%emt 0:01:04]} Bb7 {[%emt 0:02:58]} 6. Bd2 {[%emt 0:01:06]} Bd6 {[%emt 0:09:27]} 7. O-O-O {[%emt 0:15:27]} Qf6 {[%emt 0:19:09]} 8. f4 {[%emt 0:17:18]} Qg6 {[%emt 0:01:59]} 9. f5 {[%emt 0:07:13]} Qg4 {[%emt 0:04:14]} 10. Be2 {[%emt 0:03:23]} Qh4 {[%emt 0:05:26]} 11. Nf3 {[%emt 0:05:22]} Qh6 {[%emt 0:07:47]} 12. Nb5 {[%emt 0:04:53]} Nf6 {[%emt 0:03:32]} 13. Nxd6+ {[%emt 0:05:31]} cxd6 {[%emt 0:00:50]} 14. Qd3 {[%emt 0:00:40]} Qh5 {[%emt 0:01:12]} 15. Ng5 {[%emt 0:04:34]} Ne5 {[%emt 0:02:38]} 16. Qxd6 {[%emt 0:03:48]} Qxe2 {[%emt 0:08:21]} 17. Qxe5+ {[%emt 0:00:07]} Kf8 {[%emt 0:00:04]} 18. Qd6+ {[%emt 0:03:05]} Kg8 {[%emt 0:00:54]} 19. e5 {[%emt 0:01:02]} Ne4 {[%emt 0:00:56]} 20. Qxd7 {[%emt 0:00:26]} Nxg5 {[%emt 0:01:45]} 21. Bxg5 {[%emt 0:00:44]} h6 {[%emt 0:00:34]} 22. Qxb7 {[%emt 0:00:20]} Kh7 {[%emt 0:00:13]} 23. h4 {[%emt 0:00:55]} Rac8 {[%emt 0:01:15]} 24. Rd2 {[%emt 0:00:44]} Qc4 {[%emt 0:00:38]} 25. Qd5 {[%emt 0:02:44]} Qa4 {[%emt 0:01:22]} 26. Qxf7 {[%emt 0:01:15]} Rc4 {[%emt 0:00:35]} 27. Bxh6 {[%emt 0:00:32]} Rg8 {[%emt 0:01:10]} 28. Qg6+ {[%emt 0:00:36]} Kh8 {[%emt 0:00:11]} 29. f6 {[%emt 0:01:52]} gxf6 {[%emt 0:03:18]} 30. Qxf6+ {[%emt 0:00:11]} Kh7 {[%emt 0:00:06]} 31. Qf7+ {[%emt 0:01:07]} Kh8 {[%emt 0:00:15]} 32. a3 {[%emt 0:00:58]} Rc6 {[%emt 0:02:19]} 33. Bg5 {[%emt 0:01:30]} Qe4 {[%emt 0:02:49]} 34. Bf6+ {[%emt 0:00:34]} Rxf6 {[%emt 0:00:28]} 35. Qxf6+ {[%emt 0:00:08]} Rg7 {[%emt 0:00:12]} 36. Rd7 {[%emt 0:02:12]} 1-0

[Event "GER-ch Youth-U10 2022"]
[Site "Willingen"]
[Date "2022.06.09"]
[Round "8.7"]
[White "Fischer, Quirin"]
[Black "Stehning, Toni"]
[Result "1-0"]
[ECO "C56"]
[WhiteElo "1195"]
[BlackElo "1097"]
[Annotator "NA RC COMBH"]
[PlyCount "101"]
[EventDate "2022.06.05"]
[EventType "swiss"]
[EventRounds "11"]
[EventCountry "GER"]
[SourceTitle "playchess.com"]
[Source "ChessBase"]
[SourceQuality "1"]
[TimeControl "40/4500+30:900+30"]

1. e4 {[%emt 0:00:02]} e5 {[%emt 0:00:16]} 2. Nf3 {[%emt 0:00:04]} Nc6 {[%emt 0:00:12]} 3. Bc4 {[%emt 0:00:08]} Nf6 {[%emt 0:00:13]} 4. d4 {[%emt 0:00:05]} exd4 {[%emt 0:00:12]} 5. O-O {[%emt 0:00:05]} Nxe4 {[%emt 0:00:16]} 6. Re1 {[%emt 0:00:08]} d5 {[%emt 0:00:13]} 7. Bxd5 {[%emt 0:00:08]} Qxd5 {[%emt 0:00:18]} 8. Nc3 {[%emt 0:00:07]} Qd7 {[%emt 0:00:12]} 9. Nxe4 {[%emt 0:00:09]} Be7 {[%emt 0:00:25]} 10. Bh6 {[%emt 0:00:20]} O-O {[%emt 0:01:22]} 11. Bg5 {[%emt 0:00:14]} Bb4 {[%emt 0:02:39]} 12. Re2 {[%emt 0:00:49]} b6 {[%emt 0:02:01]} 13. a3 {[%emt 0:00:28]} Bd6 {[%emt 0:11:23]} 14. Nxd6 {[%emt 0:00:45]} Qxd6 {[%emt 0:00:30]} 15. b4 {[%emt 0:00:27]} f6 {[%emt 0:00:57]} 16. Bh4 {[%emt 0:00:25]} Bb7 {[%emt 0:02:30]} 17. Bg3 {[%emt 0:01:03]} Qd7 {[%emt 0:00:57]} 18. b5 {[%emt 0:00:50]} Ne5 {[%emt 0:01:32]} 19. Nxe5 {[%emt 0:00:30]} fxe5 {[%emt 0:00:06]} 20. Bxe5 {[%emt 0:00:05]} Rad8 {[%emt 0:01:05]} 21. Qd3 {[%emt 0:00:20]} Qg4 {[%emt 0:02:27]} 22. Qg3 {[%emt 0:00:46]} Qxg3 {[%emt 0:00:15]} 23. Bxg3 {[%emt 0:00:14]} Rfe8 {[%emt 0:04:54]} 24. Rae1 {[%emt 0:00:58]} Rxe2 {[%emt 0:01:31]} 25. Rxe2 {[%emt 0:00:12]} c5 {[%emt 0:04:06]} 26. f3 {[%emt 0:04:41]} Bd5 {[%emt 0:01:36]} 27. Re7 {[%emt 0:00:39]} Bc4 {[%emt 0:02:28]} 28. Rxa7 {[%emt 0:00:29]} Bxb5 {[%emt 0:00:27]} 29. Rb7 {[%emt 0:00:14]} d3 {[%emt 0:00:52]} 30. cxd3 {[%emt 0:00:09]} Bxd3 {[%emt 0:00:52]} 31. Rxb6 {[%emt 0:00:08]} Rc8 {[%emt 0:00:54]} 32. Be5 {[%emt 0:00:16]} c4 {[%emt 0:01:23]} 33. Rb8 {[%emt 0:00:10]} Rxb8 {[%emt 0:00:10]} 34. Bxb8 {[%emt 0:00:04]} Bc2 {[%emt 0:00:23]} 35. Kf2 {[%emt 0:00:05]} Bb3 {[%emt 0:00:31]} 36. Be5 {[%emt 0:00:16]} Kf7 {[%emt 0:00:33]} 37. Ke3 {[%emt 0:00:09]} g6 {[%emt 0:00:23]} 38. Kd4 {[%emt 0:00:08]} Ke6 {[%emt 0:00:32]} 39. f4 {[%emt 0:00:14]} Kf5 {[%emt 0:01:43]} 40. h3 {[%emt 0:00:49]} h5 {[%emt 0:00:42]} 41. Kc5 {[%emt 0:15:27]} Ke4 {[%emt 0:15:51]} 42. Kd6 {[%emt 0:00:27]} c3 {[%emt 0:03:20]} 43. Bxc3 {[%emt 0:00:44]} Kxf4 {[%emt 0:00:13]} 44. Kc5 {[%emt 0:00:00]} Kg3 {[%emt 0:00:00]} 45. Kb4 {[%emt 0:00:00]} Bd1 {[%emt 0:00:00]} 46. a4 {[%emt 0:00:06]} Bxa4 {[%emt 0:00:00]} 47. Kxa4 {[%emt 0:00:03]} Kxg2 {[%emt 0:00:00]} 48. h4 {[%emt 0:00:08]} Kg3 {[%emt 0:00:00]} 49. Bf6 {[%emt 0:00:06]} Kf4 {[%emt 0:00:00]} 50. Kb4 {[%emt 0:00:09]} Kf5 {[%emt 0:00:00]} 51. Bg5 {[%emt 0:00:06]} 1-0

[Event "GER-ch Youth-U10 2022"]
[Site "Willingen"]
[Date "2022.06.09"]
[Round "8.8"]
[White "Sheng, Ming"]
[Black "Peglau, Paul David"]
[Result "1/2-1/2"]
[ECO "B34"]
[WhiteElo "1258"]
[BlackElo "1623"]
[Annotator "NA RC COMBH"]
[PlyCount "78"]
[EventDate "2022.06.05"]
[EventType "swiss"]
[EventRounds "11"]
[EventCountry "GER"]
[SourceTitle "playchess.com"]
[Source "ChessBase"]
[SourceQuality "1"]
[TimeControl "40/4500+30:900+30"]

1. e4 {[%emt 0:00:18]} c5 {[%emt 0:00:56]} 2. Nf3 {[%emt 0:00:30]} Nc6 {[%emt 0:00:04]} 3. d4 {[%emt 0:00:11]} cxd4 {[%emt 0:00:01]} 4. Nxd4 {[%emt 0:00:09]} g6 {[%emt 0:00:32]} 5. Nc3 {[%emt 0:00:14]} Bg7 {[%emt 0:00:18]} 6. Be3 {[%emt 0:00:08]} Nf6 {[%emt 0:01:36]} 7. Nxc6 {[%emt 0:01:30]} bxc6 {[%emt 0:00:14]} 8. e5 {[%emt 0:00:09]} Nd5 {[%emt 0:00:48]} 9. Nxd5 {[%emt 0:00:43]} cxd5 {[%emt 0:00:11]} 10. Qxd5 {[%emt 0:00:08]} Rb8 {[%emt 0:00:30]} 11. Bxa7 {[%emt 0:01:28]} Rxb2 {[%emt 0:00:58]} 12. Bd4 {[%emt 0:00:42]} Rxc2 {[%emt 0:03:08]} 13. Bd3 {[%emt 0:00:50]} Rc6 {[%emt 0:02:01]} 14. O-O {[%emt 0:01:43]} O-O {[%emt 0:00:59]} 15. a4 {[%emt 0:02:50]} Qc7 {[%emt 0:04:55]} 16. Bb5 {[%emt 0:02:58]} Re6 {[%emt 0:05:16]} 17. Rfc1 {[%emt 0:01:12]} Qb8 {[%emt 0:01:25]} 18. Bxd7 {[%emt 0:16:49]} Bxd7 {[%emt 0:10:07]} 19. Qxd7 {[%emt 0:00:44]} Rd8 {[%emt 0:03:09]} 20. Qa7 {[%emt 0:05:35]} Qxa7 {[%emt 0:02:46]} 21. Bxa7 {[%emt 0:01:17]} Bxe5 {[%emt 0:01:24]} 22. Ra2 {[%emt 0:03:59]} Ra6 {[%emt 0:02:35]} 23. Bc5 {[%emt 0:01:54]} Rda8 {[%emt 0:03:24]} 24. Bxe7 {[%emt 0:02:01]} Rxa4 {[%emt 0:00:45]} 25. Rxa4 {[%emt 0:01:05]} Rxa4 {[%emt 0:00:01]} 26. g3 {[%emt 0:00:43]} Ra1 {[%emt 0:01:45]} 27. Rxa1 {[%emt 0:01:59]} Bxa1 {[%emt 0:00:02]} 28. Kg2 {[%emt 0:00:33]} f5 {[%emt 0:00:11]} 29. Kf3 {[%emt 0:00:54]} Kf7 {[%emt 0:00:04]} 30. Bc5 {[%emt 0:01:14]} Kf6 {[%emt 0:00:36]} 31. Ke3 {[%emt 0:06:50]} Kg5 {[%emt 0:05:30]} 32. Be7+ {[%emt 0:01:42]} Kg4 {[%emt 0:01:49]} 33. h4 {[%emt 0:02:10]} Be5 {[%emt 0:01:03]} 34. Bg5 {[%emt 0:01:01]} Bc7 {[%emt 0:03:23]} 35. Ke2 {[%emt 0:05:05]} f4 {[%emt 0:03:09]} 36. gxf4 {[%emt 0:02:01]} Bxf4 {[%emt 0:00:51]} 37. f3+ {[%emt 0:02:22]} Kg3 {[%emt 0:01:01]} 38. Bxf4+ {[%emt 0:00:29]} Kxf4 {[%emt 0:00:02]} 39. Kf2 {[%emt 0:02:26]} Ke5 {[%emt 0:00:05]} 1/2-1/2

[Event "GER-ch Youth-U10 2022"]
[Site "Willingen"]
[Date "2022.06.09"]
[Round "8.9"]
[White "Vartanian, Roman"]
[Black "Lee, Ho In"]
[Result "1/2-1/2"]
[ECO "D07"]
[WhiteElo "1511"]
[BlackElo "1396"]
[Annotator "NA RC COMBH"]
[PlyCount "100"]
[EventDate "2022.06.05"]
[EventType "swiss"]
[EventRounds "11"]
[EventCountry "GER"]
[SourceTitle "playchess.com"]
[Source "ChessBase"]
[SourceQuality "1"]
[TimeControl "40/4500+30:900+30"]

1. Nf3 {[%emt 0:00:06]} d5 {[%emt 0:00:21]} 2. c4 {[%emt 0:00:09]} e6 {[%emt 0:00:26]} 3. e3 {[%emt 0:00:06]} Nf6 {[%emt 0:00:30]} 4. Nc3 {[%emt 0:00:13]} Nc6 {[%emt 0:01:00]} 5. d4 {[%emt 0:00:16]} Be7 {[%emt 0:00:49]} 6. Be2 {[%emt 0:00:27]} dxc4 {[%emt 0:01:47]} 7. Bxc4 {[%emt 0:00:39]} O-O {[%emt 0:00:33]} 8. O-O {[%emt 0:00:07]} b6 {[%emt 0:01:38]} 9. a3 {[%emt 0:01:23]} Bb7 {[%emt 0:05:36]} 10. Be2 {[%emt 0:03:12]} Rc8 {[%emt 0:11:14]} 11. Qc2 {[%emt 0:05:25]} a6 {[%emt 0:12:54]} 12. b3 {[%emt 0:05:58]} Nd5 {[%emt 0:07:39]} 13. Nxd5 {[%emt 0:01:01]} Qxd5 {[%emt 0:02:40]} 14. Bd3 {[%emt 0:02:51]} h6 {[%emt 0:00:00]} 15. Bb2 {[%emt 0:02:20]} Nb8 {[%emt 0:03:49]} 16. Rfd1 {[%emt 0:08:29]} b5 {[%emt 0:03:56]} 17. b4 {[%emt 0:01:46]} Qc6 {[%emt 0:01:56]} 18. Qxc6 {[%emt 0:03:03]} Nxc6 {[%emt 0:00:23]} 19. Rac1 {[%emt 0:01:01]} Bf6 {[%emt 0:04:06]} 20. Be4 {[%emt 0:02:34]} Nd8 {[%emt 0:01:03]} 21. Bxb7 {[%emt 0:00:24]} Nxb7 {[%emt 0:00:14]} 22. Rc6 {[%emt 0:04:45]} a5 {[%emt 0:01:27]} 23. Rdc1 {[%emt 0:00:48]} Bd8 {[%emt 0:00:47]} 24. Rb6 {[%emt 0:07:26]} cxb6 {[%emt 0:04:05]} 25. Rxc8 {[%emt 0:00:25]} Nd6 {[%emt 0:01:53]} 26. Rc2 {[%emt 0:05:03]} Bf6 {[%emt 0:03:33]} 27. g3 {[%emt 0:01:31]} Nc4 {[%emt 0:01:19]} 28. Bc1 {[%emt 0:01:32]} a4 {[%emt 0:03:18]} 29. Nd2 {[%emt 0:00:54]} Rc8 {[%emt 0:00:34]} 30. Nxc4 {[%emt 0:00:47]} Rxc4 {[%emt 0:02:45]} 31. Rxc4 {[%emt 0:00:07]} bxc4 {[%emt 0:00:07]} 32. Bb2 {[%emt 0:00:20]} b5 {[%emt 0:00:31]} 33. Kg2 {[%emt 0:00:49]} Kh7 {[%emt 0:00:53]} 34. Kf3 {[%emt 0:00:13]} g5 {[%emt 0:00:56]} 35. g4 {[%emt 0:01:05]} Kg6 {[%emt 0:00:16]} 36. Ke4 {[%emt 0:00:14]} h5 {[%emt 0:00:32]} 37. h3 {[%emt 0:00:08]} hxg4 {[%emt 0:01:18]} 38. hxg4 {[%emt 0:00:08]} Bg7 {[%emt 0:01:14]} 39. f4 {[%emt 0:02:32]} Bf6 {[%emt 0:01:48]} 40. Kf3 {[%emt 0:01:14]} Bg7 {[%emt 0:00:26]} 41. e4 {[%emt 0:15:33]} f5 {[%emt 0:16:13]} 42. exf5+ {[%emt 0:01:40]} exf5 {[%emt 0:00:16]} 43. gxf5+ {[%emt 0:00:11]} Kxf5 {[%emt 0:00:41]} 44. fxg5 {[%emt 0:00:10]} Kxg5 {[%emt 0:00:47]} 45. Ke4 {[%emt 0:00:09]} Kg4 {[%emt 0:00:17]} 46. Ba1 {[%emt 0:02:49]} Bf6 {[%emt 0:00:24]} 47. Bb2 {[%emt 0:09:04]} Bg7 {[%emt 0:00:35]} 48. Bc3 {[%emt 0:00:17]} Bf6 {[%emt 0:00:08]} 49. Kd5 {[%emt 0:02:12]} Kf4 {[%emt 0:00:13]} 50. Ke6 {[%emt 0:01:05]} Bh8 {[%emt 0:00:22]} 1/2-1/2

[Event "GER-ch Youth-U10 2022"]
[Site "Willingen"]
[Date "2022.06.09"]
[Round "8.10"]
[White "Gersemann, Karl"]
[Black "Rohatgi, Kushagra"]
[Result "1-0"]
[ECO "B41"]
[WhiteElo "1620"]
[BlackElo "1222"]
[Annotator "NA RC COMBH"]
[PlyCount "89"]
[EventDate "2022.06.05"]
[EventType "swiss"]
[EventRounds "11"]
[EventCountry "GER"]
[SourceTitle "playchess.com"]
[Source "ChessBase"]
[SourceQuality "1"]
[TimeControl "40/4500+30:900+30"]

1. e4 {[%emt 0:00:07]} c5 {[%emt 0:00:07]} 2. Nf3 {[%emt 0:00:07]} e6 {[%emt 0:00:06]} 3. d4 {[%emt 0:00:18]} cxd4 {[%emt 0:00:09]} 4. Nxd4 {[%emt 0:00:06]} a6 {[%emt 0:00:33]} 5. c4 {[%emt 0:00:48]} Nf6 {[%emt 0:01:18]} 6. Nc3 {[%emt 0:00:30]} Qc7 {[%emt 0:00:45]} 7. Be3 {[%emt 0:00:34]} d6 {[%emt 0:01:25]} 8. Be2 {[%emt 0:00:28]} Be7 {[%emt 0:00:58]} 9. O-O {[%emt 0:00:31]} O-O {[%emt 0:04:40]} 10. Rc1 {[%emt 0:01:59]} Nbd7 {[%emt 0:01:39]} 11. f3 {[%emt 0:01:44]} b6 {[%emt 0:02:27]} 12. b4 {[%emt 0:02:40]} Bb7 {[%emt 0:02:26]} 13. Qd2 {[%emt 0:02:00]} Rac8 {[%emt 0:02:40]} 14. a4 {[%emt 0:02:15]} Rfe8 {[%emt 0:02:53]} 15. Nb3 {[%emt 0:02:07]} Qb8 {[%emt 0:05:13]} 16. Rfd1 {[%emt 0:01:49]} Red8 {[%emt 0:08:48]} 17. a5 {[%emt 0:05:52]} bxa5 {[%emt 0:03:12]} 18. Nxa5 {[%emt 0:00:16]} Ba8 {[%emt 0:03:48]} 19. Rb1 {[%emt 0:02:29]} Qc7 {[%emt 0:08:49]} 20. Qa2 {[%emt 0:04:14]} Rb8 {[%emt 0:04:43]} 21. b5 {[%emt 0:03:43]} Nc5 {[%emt 0:07:28]} 22. bxa6 {[%emt 0:01:51]} Nxa6 {[%emt 0:02:44]} 23. Nb5 {[%emt 0:00:46]} Qd7 {[%emt 0:02:20]} 24. e5 {[%emt 0:01:51]} Ne8 {[%emt 0:05:43]} 25. exd6 {[%emt 0:01:03]} Bxd6 {[%emt 0:02:22]} 26. Nxd6 {[%emt 0:02:12]} Rxb1 {[%emt 0:01:39]} 27. Qxb1 {[%emt 0:00:46]} Nxd6 {[%emt 0:01:13]} 28. c5 {[%emt 0:00:30]} Qc7 {[%emt 0:01:12]} 29. cxd6 {[%emt 0:02:01]} Qc8 {[%emt 0:05:59]} 30. Bb6 {[%emt 0:00:34]} Rd7 {[%emt 0:01:54]} 31. Bb5 {[%emt 0:02:25]} Nc5 {[%emt 0:01:05]} 32. Bxc5 {[%emt 0:01:00]} Qxc5+ {[%emt 0:00:19]} 33. Kh1 {[%emt 0:00:50]} Rxd6 {[%emt 0:00:29]} 34. Rc1 {[%emt 0:00:32]} Qb6 {[%emt 0:00:41]} 35. Nc4 {[%emt 0:00:19]} Qd8 {[%emt 0:00:34]} 36. Nxd6 {[%emt 0:00:09]} g6 {[%emt 0:00:19]} 37. Rc8 {[%emt 0:00:09]} Qxc8 {[%emt 0:00:04]} 38. Nxc8 {[%emt 0:00:06]} Kg7 {[%emt 0:00:08]} 39. Qb2+ {[%emt 0:00:12]} f6 {[%emt 0:00:14]} 40. Qd4 {[%emt 0:00:13]} Bd5 {[%emt 0:00:12]} 41. Qa7+ {[%emt 0:15:12]} Kh6 {[%emt 0:15:11]} 42. Nd6 {[%emt 0:00:22]} f5 {[%emt 0:00:14]} 43. Ne8 {[%emt 0:00:22]} e5 {[%emt 0:00:16]} 44. h4 {[%emt 0:00:19]} Kh5 {[%emt 0:00:11]} 45. Qxh7# {[%emt 0:00:14]} 1-0

[Event "GER-ch Youth-U10 2022"]
[Site "Willingen"]
[Date "2022.06.09"]
[Round "8.11"]
[White "Allen, Phillipp"]
[Black "Junge, Mattheo Gabriel"]
[Result "1-0"]
[ECO "C60"]
[WhiteElo "1467"]
[BlackElo "1132"]
[Annotator "NA RC COMBH"]
[PlyCount "71"]
[EventDate "2022.06.05"]
[EventType "swiss"]
[EventRounds "11"]
[EventCountry "GER"]
[SourceTitle "playchess.com"]
[Source "ChessBase"]
[SourceQuality "1"]
[TimeControl "40/4500+30:900+30"]

1. e4 {[%emt 0:00:02]} e5 {[%emt 0:00:16]} 2. Nf3 {[%emt 0:00:07]} Nc6 {[%emt 0:00:20]} 3. Bb5 {[%emt 0:00:07]} Nge7 {[%emt 0:00:32]} 4. d3 {[%emt 0:01:34]} g6 {[%emt 0:00:24]} 5. O-O {[%emt 0:00:38]} Bg7 {[%emt 0:00:30]} 6. Re1 {[%emt 0:01:32]} O-O {[%emt 0:01:04]} 7. c3 {[%emt 0:02:04]} d6 {[%emt 0:01:18]} 8. Nbd2 {[%emt 0:02:59]} h6 {[%emt 0:01:57]} 9. Nf1 {[%emt 0:00:47]} g5 {[%emt 0:01:18]} 10. Ng3 {[%emt 0:04:06]} Ng6 {[%emt 0:02:07]} 11. h3 {[%emt 0:02:22]} Nce7 {[%emt 0:02:55]} 12. d4 {[%emt 0:06:07]} Nf4 {[%emt 0:02:05]} 13. Bxf4 {[%emt 0:01:36]} exf4 {[%emt 0:00:31]} 14. Nf1 {[%emt 0:07:21]} a6 {[%emt 0:05:03]} 15. Ba4 {[%emt 0:02:41]} b5 {[%emt 0:00:54]} 16. Bb3 {[%emt 0:00:56]} Ng6 {[%emt 0:06:05]} 17. N3h2 {[%emt 0:11:59]} Bb7 {[%emt 0:06:19]} 18. Qh5 {[%emt 0:01:58]} Kh7 {[%emt 0:06:46]} 19. Ng4 {[%emt 0:09:58]} f3 {[%emt 0:01:58]} 20. g3 {[%emt 0:00:14]} Qe7 {[%emt 0:17:06]} 21. Nfe3 {[%emt 0:15:03]} Rh8 {[%emt 0:11:07]} 22. Nf5 {[%emt 0:01:26]} Qf8 {[%emt 0:00:08]} 23. Nxg7 {[%emt 0:05:35]} Qxg7 {[%emt 0:00:12]} 24. e5 {[%emt 0:00:14]} dxe5 {[%emt 0:00:49]} 25. dxe5 {[%emt 0:00:17]} Qf8 {[%emt 0:00:36]} 26. Bc2 {[%emt 0:00:33]} Bc8 {[%emt 0:01:11]} 27. e6 {[%emt 0:00:20]} f5 {[%emt 0:01:39]} 28. e7 {[%emt 0:00:43]} Qg7 {[%emt 0:00:24]} 29. e8=Q {[%emt 0:02:30]} Rxe8 {[%emt 0:00:01]} 30. Rxe8 {[%emt 0:00:19]} fxg4 {[%emt 0:00:09]} 31. Bxg6+ {[%emt 0:00:14]} Qxg6 {[%emt 0:00:09]} 32. Rh8+ {[%emt 0:00:02]} Kg7 {[%emt 0:00:56]} 33. Rg8+ {[%emt 0:00:05]} Kxg8 {[%emt 0:00:05]} 34. Qxg6+ {[%emt 0:00:07]} Kh8 {[%emt 0:00:13]} 35. Re1 {[%emt 0:00:29]} Bd7 {[%emt 0:00:12]} 36. Re7 {[%emt 0:00:07]} 1-0